bitfinex-derivatives/quotes_BTCF0:USTF0_20260221
["timestamp","ask_amount","ask_price","bid_price","bid_amount"]
[1771661993992,0.014713,67986.0,67980.0,0.014714]
[1771661994398,0.014712,67992.0,67982.0,0.014714]
[1771661994586,0.014712,67992.0,67973.0,0.014716]
[1771661994587,0.014712,67991.0,67985.0,0.014713]
[1771661994780,0.014712,67991.0,67984.0,0.014713]
[1771661994781,0.029424,67990.0,67981.0,0.014714]
[1771661994985,0.014712,67990.0,67984.0,0.014713]
[1771661995596,0.014712,67992.0,67984.0,0.014713]
[1771661995597,0.014712,67989.0,67984.0,0.014713]
[1771661996084,0.014712,67989.0,67981.0,0.014714]
[1771661996290,0.014712,67989.0,67984.0,0.014713]
[1771661996494,0.014712,67991.0,67985.0,0.014713]
[1771661996998,0.014712,67990.0,67985.0,0.014713]
[1771661997500,0.014712,67991.0,67985.0,0.014713]
[1771661997795,0.014712,67991.0,67986.0,0.014713]
[1771661998093,0.014712,67990.0,67985.0,0.014713]
[1771661998495,0.22979594,67989.0,67985.0,0.014713]
[1771661998795,0.22979594,67988.0,67985.0,0.014713]
[1771661999104,0.22979594,67987.0,67985.0,0.014713]
[1771661999393,0.22979594,67986.0,67985.0,0.014713]
[1771662000094,0.22979594,67989.0,67985.0,0.014713]
[1771662000296,0.22979594,67988.0,67985.0,0.014713]
[1771662000591,0.22979594,67987.0,67985.0,0.014713]
[1771662000796,0.029424,67992.0,67986.0,0.014713]
[1771662000997,0.24452279,67991.0,67985.0,0.014713]
[1771662001297,0.24452279,67990.0,67985.0,0.014713]
[1771662001499,0.22981079,67989.0,67986.0,0.014713]
[1771662001690,0.22981079,67988.0,67986.0,0.014713]
[1771662001892,0.22981079,67987.0,67985.0,0.014713]
[1771662002091,0.22981079,67986.0,67985.0,0.014713]
[1771662002487,0.014712,67988.0,67981.0,0.014714]
[1771662002689,0.014713,67985.0,67970.0,0.18011387]
[1771662002895,0.22981079,67984.0,67975.0,0.014715]
[1771662003095,0.24452379,67984.0,67977.0,0.014715]
[1771662003399,0.22981079,67983.0,67977.0,0.014715]
[1771662003798,0.22981079,67983.0,67979.0,0.014714]
[1771662005301,0.22981079,67983.0,67978.0,0.014715]
[1771662005302,0.24452479,67983.0,67978.0,0.014715]
[1771662005495,0.24452479,67982.0,67975.0,0.014715]
[1771662005690,0.22981079,67981.0,67975.0,0.014715]
[1771662005895,0.014714,67983.0,67977.0,0.014715]
[1771662006099,0.22993351,67982.0,67978.0,0.014715]
[1771662006298,0.22993351,67981.0,67977.0,0.014715]
[1771662007200,0.22993351,67981.0,67978.0,0.014715]
[1771662007601,0.22993351,67980.0,67978.0,0.014715]
[1771662007801,0.014714,67983.0,67978.0,0.014715]
[1771662008000,0.2300054,67982.0,67978.0,0.014715]
[1771662008201,0.2300054,67981.0,67978.0,0.014715]
[1771662008402,0.2300054,67980.0,67978.0,0.014715]
[1771662008601,0.029428,67983.0,67978.0,0.014715]
[1771662008899,0.23005254,67982.0,67978.0,0.014715]
[1771662009095,0.23005254,67981.0,67978.0,0.029429]
[1771662009301,0.23005254,67980.0,67978.0,0.014714]
[1771662009602,0.014714,67983.0,67979.0,0.014714]
[1771662009808,0.23010106,67982.0,67979.0,0.014714]
[1771662010002,0.23010106,67981.0,67979.0,0.014714]
[1771662010202,0.23010106,67980.0,67979.0,0.014714]
[1771662010411,0.23010106,67980.0,67977.0,0.014715]
[1771662010701,0.23010106,67979.0,67978.0,0.014714]
[1771662010895,0.23010106,67982.0,67978.0,0.014714]
[1771662011499,0.23010106,67982.0,67979.0,0.014714]
[1771662012801,0.23010106,67982.0,67967.0,0.014717]
[1771662012802,0.014715,67977.0,67950.0,0.29938523]
[1771662013006,0.23010106,67976.0,67965.0,0.014717]
[1771662013197,0.23010106,67975.0,67960.0,0.12860687]
[1771662013397,0.23010106,67974.0,67973.0,0.014716]
[1771662013796,0.23010106,67977.0,67973.0,0.014716]
[1771662014006,0.23010106,67976.0,67973.0,0.014716]
[1771662014205,0.23010106,67975.0,67973.0,0.014716]
[1771662014405,0.23010106,67974.0,67973.0,0.014716]
[1771662014704,0.23010106,67977.0,67973.0,0.014716]
[1771662014905,0.23010106,67976.0,67973.0,0.014716]
[1771662015108,0.23010106,67975.0,67973.0,0.014716]
[1771662015303,0.23010106,67974.0,67973.0,0.014716]
[1771662015700,0.23010106,67977.0,67973.0,0.014716]
[1771662016006,0.23030169,67976.0,67973.0,0.014716]
[1771662016209,0.23030169,67975.0,67973.0,0.014716]
[1771662016398,0.23030169,67974.0,67973.0,0.014716]
[1771662016906,0.014714,67980.0,67973.0,0.014716]
[1771662016907,0.014714,67981.0,67977.0,0.014715]
[1771662017093,0.014714,67982.0,67975.0,0.014715]
[1771662017501,0.014713,67986.0,67971.0,0.014716]
[1771662017702,0.014713,67983.0,67978.0,0.014714]
[1771662018908,0.029427,67983.0,67978.0,0.014714]
[1771662019408,0.014714,67982.0,67978.0,0.014714]
[1771662022103,0.014713,67983.0,67978.0,0.014714]
[1771662022499,0.014713,67983.0,67976.0,0.014715]
[1771662023103,0.014713,67983.0,67978.0,0.014714]
[1771662024015,0.014713,67984.0,67978.0,0.014714]
[1771662024212,0.014713,67984.0,67979.0,0.014714]
[1771662027319,0.014713,67984.0,67978.0,0.014714]
[1771662028319,0.029426,67984.0,67978.0,0.014714]
[1771662028718,0.23434548,67983.0,67978.0,0.014714]
[1771662028914,0.21963248,67982.0,67978.0,0.014714]
[1771662029121,0.21963248,67981.0,67977.0,0.014715]
[1771662031619,0.21963248,67981.0,67978.0,0.014714]
[1771662031813,4.8e-07,67980.0,67979.0,0.014714]
[1771662032020,0.014713,67985.0,67980.0,0.014714]
[1771662032222,0.014713,67984.0,67978.0,0.014715]
[1771662032414,0.014713,67984.0,67979.0,0.014714]
[1771662033325,0.014713,67985.0,67980.0,0.014714]
[1771662033927,0.014711,67995.0,67989.0,0.014712]
[1771662034227,0.014711,67993.0,67988.0,0.014712]
[1771662034919,0.014711,67993.0,67984.0,0.014713]
[1771662035124,0.014712,67991.0,67986.0,0.014713]
[1771662039234,0.014712,67991.0,67985.0,0.014713]
[1771662040223,0.014712,67990.0,67985.0,0.014713]
[1771662042131,0.014712,67991.0,67985.0,0.014713]
[1771662042132,0.014712,67992.0,67985.0,0.014713]
[1771662042823,0.014712,67990.0,67985.0,0.014713]
[1771662043919,0.21202074,67989.0,67985.0,0.014713]
[1771662044120,0.21202074,67988.0,67985.0,0.014713]
[1771662044320,0.21202074,67987.0,67985.0,0.014713]
[1771662044531,0.014712,67990.0,67985.0,0.014713]
[1771662044835,0.21201028,67989.0,67985.0,0.014713]
[1771662045024,0.21201028,67988.0,67985.0,0.014713]
[1771662045226,0.21201028,67987.0,67985.0,0.014713]
[1771662045426,0.014712,67990.0,67985.0,0.014713]
[1771662045632,0.2120029,67989.0,67985.0,0.014713]
[1771662045928,0.2120029,67988.0,67985.0,0.014713]
[1771662046124,0.2120029,67987.0,67985.0,0.014713]
[1771662046324,0.014712,67990.0,67985.0,0.014713]
[1771662046627,0.2119985,67989.0,67985.0,0.014713]
[1771662046830,0.2119985,67988.0,67985.0,0.014713]
[1771662047021,0.2119985,67987.0,67985.0,0.014713]
[1771662047224,0.014712,67989.0,67985.0,0.014713]
[1771662047421,0.21200036,67988.0,67985.0,0.014713]
[1771662047724,0.014712,67989.0,67981.0,0.014714]
[1771662047725,0.014713,67986.0,67981.0,0.014714]
[1771662052228,0.014713,67986.0,67982.0,0.014714]
[1771662055335,0.014713,67987.0,67982.0,0.014714]
[1771662055524,0.20732093,67986.0,67982.0,0.014714]
[1771662055834,0.014713,67987.0,67982.0,0.014714]
[1771662056024,0.20732093,67986.0,67982.0,0.014714]
[1771662056225,0.014713,67986.0,67982.0,0.014714]
[1771662056937,0.014713,67987.0,67982.0,0.014714]
[1771662057126,0.20732974,67986.0,67982.0,0.014714]
[1771662057325,0.014713,67987.0,67982.0,0.014714]
[1771662057526,0.20733998,67986.0,67982.0,0.014714]
[1771662057721,0.014712,67989.0,67983.0,0.014713]
[1771662057936,0.20733998,67988.0,67983.0,0.014713]
[1771662058139,0.014711,67996.0,67987.0,0.014712]
[1771662058434,0.014711,67993.0,67987.0,0.014713]
[1771662058626,0.014711,67993.0,67988.0,0.014712]
[1771662058827,0.029423,67993.0,67988.0,0.014712]
[1771662059936,0.029423,67993.0,67987.0,0.014713]
[1771662060135,0.014711,67993.0,67987.0,0.014713]
[1771662060336,0.014711,67993.0,67988.0,0.014712]
[1771662062140,0.014712,67989.0,67982.0,0.014714]
[1771662062439,0.014712,67989.0,67983.0,0.014713]
[1771662062938,0.014712,67989.0,67984.0,0.014713]
[1771662063436,0.014712,67990.0,67984.0,0.014713]
[1771662066242,0.014712,67989.0,67984.0,0.014713]
[1771662069041,0.014713,67987.0,67973.0,0.014716]
[1771662069245,0.014713,67987.0,67981.0,0.014714]
[1771662069542,0.014713,67986.0,67981.0,0.014714]
[1771662070343,0.20133464,67985.0,67981.0,0.014714]
[1771662070544,0.014713,67986.0,67981.0,0.014714]
[1771662070843,0.20154759,67985.0,67981.0,0.014714]
[1771662071043,0.014713,67986.0,67981.0,0.014714]
[1771662071345,5.1e-07,67985.0,67984.0,0.014713]
[1771662071546,0.014712,67989.0,67984.0,0.014713]
[1771662071745,0.014712,67989.0,67984.0,0.029426]
[1771662071938,0.014712,67989.0,67985.0,0.014713]
[1771662072945,0.014712,67990.0,67985.0,0.014713]
[1771662075844,0.014711,67993.0,67986.0,0.014713]
[1771662076152,0.014711,67993.0,67987.0,0.014713]
[1771662076543,0.029423,67993.0,67987.0,0.014713]
[1771662076945,0.014711,67993.0,67987.0,0.014713]
[1771662077652,0.014711,67993.0,67988.0,0.014712]
[1771662077952,0.014711,67995.0,67988.0,0.014712]
[1771662078345,0.029422,67993.0,67988.0,0.014712]
[1771662078855,0.01471,68000.0,67993.0,0.014711]
[1771662079154,0.01471,67998.0,67992.0,0.014711]
[1771662079345,0.01471,67998.0,67993.0,0.014711]
[1771662081355,0.01471,67997.0,67991.0,0.029424]
[1771662081546,0.01471,67998.0,67991.0,0.014712]
[1771662082153,0.014709,68002.0,67994.0,0.014711]
[1771662082358,0.01471,68001.0,67995.0,0.014711]
[1771662082652,0.014709,68004.0,67996.0,0.01471]
[1771662082854,0.014709,68005.0,67996.0,0.01471]
[1771662083053,0.014709,68004.0,67999.0,0.01471]
[1771662083661,0.014709,68004.0,67998.0,0.01471]
[1771662084564,0.014709,68003.0,67998.0,0.01471]
[1771662085159,0.014709,68005.0,67999.0,0.01471]
[1771662085362,0.014709,68006.0,67999.0,0.01471]
[1771662085661,0.014709,68004.0,67999.0,0.01471]
[1771662086666,0.014709,68005.0,67999.0,0.01471]
[1771662086864,0.014709,68005.0,68000.0,0.01471]
[1771662087058,0.014709,68004.0,67999.0,0.01559]
[1771662087261,0.014709,68004.0,67999.0,0.01471]
[1771662090966,0.014709,68004.0,67998.0,0.01471]
[1771662091162,0.014709,68004.0,67999.0,0.01471]
[1771662091367,0.014709,68005.0,67999.0,0.01471]
[1771662091862,0.014709,68004.0,67999.0,0.01471]
[1771662093169,0.014709,68005.0,67999.0,0.01471]
[1771662093368,0.014709,68005.0,68000.0,0.01471]
[1771662096865,0.35279471,68009.0,67991.0,0.014712]
[1771662097070,0.18006458,68010.0,67982.0,0.36847407]
[1771662097071,0.01471,68000.0,67994.0,0.014711]
[1771662097270,0.01471,68000.0,67992.0,0.01470517]
[1771662097570,0.01471,68000.0,67994.0,0.014711]
[1771662097773,0.01471,68000.0,67994.0,0.029422]
[1771662098070,0.01471,68000.0,67995.0,0.014711]
[1771662100467,0.014709,68002.0,67996.0,0.014711]
[1771662100468,0.01471,68002.0,67996.0,0.014711]
[1771662100776,0.01471,68001.0,67995.0,0.014711]
[1771662101074,0.01471,68001.0,67995.0,0.029422]
[1771662101274,0.01471,68001.0,67995.0,0.014711]
[1771662101774,0.01471,68000.0,67994.0,0.014711]
[1771662102074,0.01471,68000.0,67994.0,0.015591]
[1771662102374,0.01471,68000.0,67995.0,0.014711]
[1771662102870,0.01471,68000.0,67993.0,0.014711]
[1771662103076,0.01471,68000.0,67994.0,0.014711]
[1771662103277,0.01471,67999.0,67994.0,0.014711]
[1771662105173,0.014711,67996.0,67979.0,0.014714]
[1771662105379,0.014712,67991.0,67985.0,0.014713]
[1771662105565,0.014712,67991.0,67984.0,0.014713]
[1771662105766,0.01471,67998.0,67991.0,0.014712]
[1771662105971,0.014711,67997.0,67980.0,0.17896458]
[1771662106183,0.014711,67996.0,67991.0,0.014712]
[1771662108281,0.014711,67996.0,67990.0,0.014712]
[1771662110385,0.029422,67996.0,67990.0,0.014712]
[1771662111379,0.014711,67995.0,67989.0,0.014712]
[1771662112284,0.014711,67995.0,67989.0,0.029424]
[1771662113788,0.014711,67995.0,67990.0,0.014712]
[1771662114786,0.3395802,68007.0,67989.0,0.014712]
[1771662114982,0.01471,68000.0,67994.0,0.014711]
[1771662115183,0.01471,68000.0,67994.0,0.029422]
[1771662115586,0.01471,68000.0,67994.0,0.014711]
[1771662115785,0.01471,68000.0,67995.0,0.014711]
[1771662116290,0.01471,67997.0,67991.0,0.014712]
[1771662116686,0.01471,67997.0,67992.0,0.014711]
[1771662120902,0.014711,67995.0,67985.0,0.014713]
[1771662121090,0.014711,67995.0,67989.0,0.014712]
[1771662121395,0.014711,67995.0,67989.0,0.029424]
[1771662121794,0.014711,67995.0,67990.0,0.014712]
[1771662125403,0.014711,67995.0,67991.0,0.014712]
[1771662126394,0.029422,67997.0,67991.0,0.014712]
[1771662127302,0.029422,67997.0,67992.0,0.014712]
[1771662128203,0.01471,67998.0,67993.0,0.014711]
[1771662129496,0.01471,67998.0,67986.0,0.014713]
[1771662129497,0.014711,67996.0,67986.0,0.014713]
[1771662129697,0.014711,67996.0,67988.0,0.014712]
[1771662130105,0.014711,67995.0,67989.0,0.014712]
[1771662130902,0.014711,67994.0,67989.0,0.014712]
[1771662133405,0.014711,67993.0,67988.0,0.014712]
[1771662136408,0.014711,67994.0,67989.0,0.014712]
[1771662139510,0.014711,67994.0,67990.0,0.014712]
[1771662139909,0.014711,67995.0,67990.0,0.014712]
[1771662144315,0.014711,67995.0,67990.0,0.029424]
[1771662145812,0.014711,67995.0,67991.0,0.014712]
[1771662146312,0.014711,67996.0,67991.0,0.014712]
[1771662149014,0.014709,68002.0,67992.0,0.014711]
[1771662149214,0.01471,67997.0,67992.0,0.014711]
[1771662150816,0.01471,68000.0,67986.0,0.014713]
[1771662151515,0.01471,68000.0,67994.0,0.014711]
[1771662151919,0.01471,68001.0,67995.0,0.014711]
[1771662152511,0.01471,68001.0,67996.0,0.014711]
[1771662153115,0.014709,68006.0,67999.0,0.01471]
[1771662153116,0.014709,68004.0,67999.0,0.01471]
[1771662153313,0.014709,68004.0,67998.0,0.01471]
[1771662153514,0.014709,68003.0,67998.0,0.01471]
[1771662153908,0.014709,68003.0,67997.0,0.01471]
[1771662154218,0.014709,68002.0,67997.0,0.01471]
[1771662155819,0.014709,68002.0,67993.0,0.014711]
[1771662155820,0.01471,68000.0,67994.0,0.014711]
[1771662158321,0.01471,68001.0,67995.0,0.014711]
[1771662158523,0.01471,68001.0,67996.0,0.014711]
[1771662158921,0.01471,68001.0,67995.0,0.014711]
[1771662159222,0.01471,68001.0,67996.0,0.014711]
[1771662159722,0.01471,68001.0,67995.0,0.014711]
[1771662160417,0.01471,68000.0,67995.0,0.014711]
[1771662163833,0.01471,68001.0,67995.0,0.014711]
[1771662166330,0.01471,68001.0,67996.0,0.014711]
[1771662167327,0.014709,68003.0,67996.0,0.014711]
[1771662167533,0.014709,68004.0,67998.0,0.01471]
[1771662167733,0.014709,68003.0,67998.0,0.01471]
[1771662167933,0.014709,68002.0,67997.0,0.01471]
[1771662168130,0.014709,68003.0,67997.0,0.01471]
[1771662168329,0.014709,68003.0,67998.0,0.01471]
[1771662169236,0.014709,68003.0,67997.0,0.01471]
[1771662169438,0.014709,68003.0,67998.0,0.01471]
[1771662169737,0.014709,68003.0,67996.0,0.014711]
[1771662169738,0.014709,68003.0,67997.0,0.01471]
[1771662171334,0.014709,68003.0,67998.0,0.01471]
[1771662171635,0.014709,68006.0,67998.0,0.01471]
[1771662171838,0.014709,68003.0,67998.0,0.01471]
[1771662172530,0.014709,68003.0,67996.0,0.014711]
[1771662172837,0.014709,68002.0,67997.0,0.01471]
[1771662174241,0.014709,68002.0,67996.0,0.014711]
[1771662174630,0.029419,68002.0,67996.0,0.014711]
[1771662174830,0.014709,68002.0,67996.0,0.014711]
[1771662175034,0.01471,68000.0,67984.0,0.014713]
[1771662175240,0.014709,68003.0,67996.0,0.01471]
[1771662175435,0.014709,68002.0,67997.0,0.01471]
[1771662175739,0.014709,68004.0,67998.0,0.01471]
[1771662176135,0.014709,68003.0,67997.0,0.01471]
[1771662177039,0.014709,68002.0,67996.0,0.014711]
[1771662177233,0.014708,68008.0,67999.0,0.01471]
[1771662177434,0.014708,68008.0,67998.0,0.01471]
[1771662177635,0.014709,68004.0,67998.0,0.01471]
[1771662177836,0.029418,68004.0,67998.0,0.01471]
[1771662178134,0.014709,68004.0,67998.0,0.01471]
[1771662179842,0.014709,68003.0,67998.0,0.01471]
[1771662180546,0.014709,68003.0,67997.0,0.01471]
[1771662183047,0.014709,68003.0,67997.0,0.01559]
[1771662183248,0.014709,68003.0,67997.0,0.01471]
[1771662184143,0.014709,68004.0,67997.0,0.01471]
[1771662184455,0.014708,68007.0,67997.0,0.01471]
[1771662184947,0.014709,68003.0,67997.0,0.01471]
[1771662185649,0.014709,68004.0,67998.0,0.01471]
[1771662186050,0.014709,68004.0,67998.0,0.01563]
[1771662186251,0.014709,68004.0,67998.0,0.01471]
[1771662186846,0.014709,68003.0,67998.0,0.01471]
[1771662193060,0.014709,68003.0,67997.0,0.01471]
[1771662193661,0.3411581,68010.0,67997.0,0.01471]
[1771662194059,0.014709,68003.0,67998.0,0.01471]
[1771662195258,0.014709,68003.0,67997.0,0.01471]
[1771662195662,0.014709,68002.0,67996.0,0.014711]
[1771662195963,0.014709,68002.0,67996.0,0.029421]
[1771662196661,0.014709,68003.0,67997.0,0.01471]
[1771662198062,0.014709,68003.0,67997.0,0.01551]
[1771662198255,0.014709,68003.0,67997.0,0.01471]
[1771662198449,0.014709,68002.0,67997.0,0.01471]
[1771662199262,0.014709,68003.0,67997.0,0.01471]
[1771662204266,0.029418,68004.0,67998.0,0.01471]
[1771662204856,0.014709,68003.0,67998.0,0.01471]
[1771662205260,0.014709,68003.0,67997.0,0.01471]
[1771662207265,0.014709,68003.0,67998.0,0.01471]
[1771662211260,0.014709,68005.0,67998.0,0.01471]
[1771662212361,0.014709,68005.0,67999.0,0.01471]
[1771662217276,0.3411581,68010.0,68005.0,0.014709]
[1771662218273,0.3558661,68010.0,68004.0,0.014709]
[1771662218673,0.3705741,68010.0,68004.0,0.014709]
[1771662218872,0.014708,68009.0,68004.0,0.014709]
[1771662219273,0.014708,68009.0,68002.0,0.014709]
[1771662220475,0.014708,68008.0,68002.0,0.014709]
[1771662223278,0.014708,68007.0,68001.0,0.014709]
[1771662223976,0.014708,68007.0,68001.0,0.029418]
[1771662224984,0.014708,68007.0,68001.0,0.014709]
[1771662225383,0.014708,68007.0,68002.0,0.014709]
[1771662225583,0.014708,68009.0,68002.0,0.014709]
[1771662226589,0.014708,68008.0,68002.0,0.014709]
[1771662229284,0.014708,68007.0,68001.0,0.014709]
[1771662229502,0.014708,68007.0,68001.0,0.029418]
[1771662230788,0.014708,68008.0,68002.0,0.014709]
[1771662233289,0.014708,68007.0,68001.0,0.014709]
[1771662233990,0.3411581,68010.0,68003.0,0.014709]
[1771662233991,0.014708,68009.0,68003.0,0.014709]
[1771662236884,0.014708,68009.0,68003.0,0.029418]
[1771662237091,0.014708,68009.0,68003.0,0.014709]
[1771662240488,0.014708,68008.0,68002.0,0.014709]
[1771662244095,0.014708,68008.0,67998.0,0.01471]
[1771662244293,0.014708,68008.0,68001.0,0.014709]
[1771662244499,0.029416,68008.0,68001.0,0.014709]
[1771662244688,0.014708,68007.0,68000.0,0.01471]
[1771662244897,0.014708,68007.0,68001.0,0.01471]
[1771662251299,0.014708,68007.0,68000.0,0.01471]
[1771662251497,0.014709,68006.0,68000.0,0.01471]
[1771662252092,0.014709,68006.0,68000.0,0.01563]
[1771662252301,0.014709,68006.0,68000.0,0.01471]
[1771662256303,0.014708,68009.0,68002.0,0.014709]
[1771662256497,0.014708,68008.0,68002.0,0.029418]
[1771662256697,0.014708,68008.0,68003.0,0.014709]
[1771662257000,0.014708,68009.0,68004.0,0.014709]
[1771662257600,0.014708,68009.0,68003.0,0.014709]
[1771662259301,0.014708,68009.0,68004.0,0.014709]
[1771662260199,0.014708,68009.0,68002.0,0.014709]
[1771662260200,0.014708,68009.0,68003.0,0.014709]
[1771662260400,0.014708,68009.0,68002.0,0.014709]
[1771662261300,0.014708,68008.0,68002.0,0.014709]
[1771662261496,0.014708,68007.0,68001.0,0.01471]
[1771662261697,0.014708,68008.0,68002.0,0.014709]
[1771662273101,0.014708,68008.0,68002.0,0.015629]
[1771662273315,0.014708,68009.0,68002.0,0.014709]
[1771662274407,0.014708,68009.0,68003.0,0.014709]
[1771662276217,0.014707,68011.0,68004.0,0.014709]
[1771662276904,0.014707,68011.0,68005.0,0.014709]
[1771662279310,0.014707,68011.0,68004.0,0.014709]
[1771662280407,0.014708,68010.0,68004.0,0.014709]
[1771662285317,0.014707,68011.0,68005.0,0.014709]
[1771662291319,0.014707,68011.0,68004.0,0.014709]
[1771662294216,0.014707,68011.0,68005.0,0.014709]
[1771662294517,0.014707,68012.0,68005.0,0.029418]
[1771662295208,0.014707,68012.0,68005.0,0.014709]
[1771662295408,0.014707,68011.0,68005.0,0.014709]
[1771662298617,0.014707,68011.0,68004.0,0.014709]
[1771662302116,0.014707,68011.0,68005.0,0.014709]
[1771662304021,0.014707,68013.0,68005.0,0.014709]
[1771662304022,0.014707,68012.0,68005.0,0.014709]
[1771662304321,0.014707,68015.0,68008.0,0.014708]
[1771662304919,0.014707,68014.0,68008.0,0.014708]
[1771662306314,0.014707,68013.0,68006.0,0.014708]
[1771662307318,0.014707,68013.0,68007.0,0.014708]
[1771662308925,0.014707,68013.0,68006.0,0.014708]
[1771662309319,0.014707,68013.0,68005.0,0.014709]
[1771662309721,0.029414,68013.0,68006.0,0.014708]
[1771662310022,0.014707,68012.0,68006.0,0.014708]
[1771662312827,0.014707,68013.0,68007.0,0.014708]
[1771662313026,0.014707,68012.0,68007.0,0.014708]
[1771662313223,0.014707,68014.0,68006.0,0.014708]
[1771662313422,0.014707,68013.0,68006.0,0.014708]
[1771662314221,0.014707,68013.0,68007.0,0.014708]
[1771662315425,0.014707,68013.0,68006.0,0.014708]
[1771662315623,0.014707,68014.0,68008.0,0.014708]
[1771662316124,0.014707,68014.0,68008.0,0.029416]
[1771662316826,0.014707,68014.0,68008.0,0.014708]
[1771662317028,0.014707,68015.0,68006.0,0.014708]
[1771662317224,0.014707,68015.0,68009.0,0.014708]
[1771662321232,0.014707,68015.0,68008.0,0.014708]
[1771662322224,0.014707,68015.0,68007.0,0.014708]
[1771662322625,0.014707,68013.0,68007.0,0.014708]
[1771662323431,0.014707,68013.0,68007.0,0.029416]
[1771662323735,0.014707,68014.0,68008.0,0.014708]
[1771662325734,0.014707,68013.0,68007.0,0.014708]
[1771662325935,0.014707,68014.0,68008.0,0.014708]
[1771662326134,0.014707,68015.0,68008.0,0.014708]
[1771662328139,0.014707,68014.0,68008.0,0.014708]
[1771662330040,0.014707,68014.0,68008.0,0.015668]
[1771662330237,0.014707,68014.0,68008.0,0.014708]
[1771662331339,0.014707,68015.0,68008.0,0.014708]
[1771662331937,0.014707,68014.0,68008.0,0.014708]
[1771662332241,0.014707,68015.0,68008.0,0.014708]
[1771662333046,0.014707,68015.0,68009.0,0.00092]
[1771662333244,0.014707,68015.0,68008.0,0.014708]
[1771662334239,0.014707,68015.0,68009.0,0.014708]
[1771662335656,0.014707,68015.0,68008.0,0.014708]
[1771662336054,0.014707,68015.0,68009.0,0.00092]
[1771662336251,0.014707,68015.0,68008.0,0.014708]
[1771662337453,0.014707,68015.0,68009.0,0.014708]
[1771662342057,0.014707,68015.0,68009.0,0.015588]
[1771662342257,0.014707,68015.0,68009.0,0.014708]
[1771662344463,0.014707,68015.0,68007.0,0.014708]
[1771662344464,0.014705,68021.0,68015.0,0.014706]
[1771662344653,0.014705,68021.0,68014.0,0.014707]
[1771662345162,0.014705,68021.0,68015.0,0.014707]
[1771662345961,0.02941,68022.0,68015.0,0.014707]
[1771662346762,0.014705,68021.0,68015.0,0.014707]
[1771662349465,0.014705,68021.0,68014.0,0.014707]
[1771662350159,0.014705,68021.0,68015.0,0.014707]
[1771662350365,0.014704,68026.0,68019.0,0.014706]
[1771662350564,0.014704,68026.0,68019.0,0.014705]
[1771662350764,0.014704,68028.0,68018.0,0.014706]
[1771662351363,0.014704,68028.0,68021.0,0.014705]
[1771662351557,0.029408,68029.0,68022.0,0.014705]
[1771662352463,0.014704,68028.0,68022.0,0.014705]
[1771662352665,0.014703,68030.0,68022.0,0.02941]
[1771662352864,0.014704,68029.0,68023.0,0.014705]
[1771662353056,0.014704,68029.0,68022.0,0.014705]
[1771662354156,0.014704,68029.0,68022.0,0.02941]
[1771662354965,0.014704,68029.0,68023.0,0.014705]
[1771662355656,0.014704,68029.0,68022.0,0.014705]
[1771662356965,0.014703,68030.0,68023.0,0.014705]
[1771662359270,0.01543796,68031.0,68024.0,0.014705]
[1771662359462,0.00073496,68031.0,68025.0,0.014704]
[1771662359663,0.01543796,68031.0,68025.0,0.014704]
[1771662360364,0.00073496,68031.0,68025.0,0.014704]
[1771662360963,0.01543796,68031.0,68024.0,0.014705]
[1771662362670,0.014703,68030.0,68024.0,0.014705]
[1771662363066,0.014703,68030.0,68024.0,0.015585]
[1771662363268,0.014703,68030.0,68024.0,0.014705]
[1771662367872,0.01543796,68031.0,68024.0,0.014705]
[1771662368176,0.01543796,68031.0,68024.0,0.029409]
[1771662368470,0.01543796,68031.0,68024.0,0.029408]
[1771662368776,0.01543796,68031.0,68024.0,0.014704]
[1771662369862,0.014701,68042.0,68033.0,0.014702]
[1771662370160,0.014701,68041.0,68034.0,0.014702]
[1771662370864,1.5,68040.0,68035.0,0.014702]
[1771662371374,1.5,68040.0,68036.0,0.014702]
[1771662374776,1.514701,68040.0,68033.0,0.014703]
[1771662375470,0.014702,68035.0,68019.0,0.014706]
[1771662375671,0.014702,68035.0,68026.0,0.014704]
[1771662375863,0.27889244,68037.0,68027.0,0.014704]
[1771662376070,0.814702,68036.0,68029.0,0.014703]
[1771662376269,0.829404,68036.0,68030.0,0.014703]
[1771662376779,0.014702,68035.0,68030.0,0.014703]
[1771662377882,0.814702,68035.0,68030.0,0.014703]
[1771662379677,1.5,68040.0,68036.0,0.014702]
[1771662381384,1.5,68040.0,68037.0,0.014702]
[1771662384189,1.5,68040.0,68034.0,0.014702]
[1771662384983,1.5,68040.0,68035.0,0.014702]
[1771662385180,1.5,68040.0,68039.0,0.014701]
[1771662385382,1.5,68040.0,68037.0,0.014702]
[1771662385881,1.5,68040.0,68039.0,0.014701]
[1771662387088,1.5,68040.0,68038.0,0.014702]
[1771662387682,1.5,68040.0,68035.0,0.014702]
[1771662387887,1.5,68040.0,68037.0,0.014702]
[1771662388095,1.5,68040.0,68033.0,0.014703]
[1771662388096,1.5,68040.0,68035.0,0.014702]
[1771662388284,1.514701,68040.0,68020.0,0.19472065]
[1771662388591,1.5,68040.0,68020.0,0.19472065]
[1771662389384,1.514701,68040.0,68034.0,0.014702]
[1771662389590,0.014701,68039.0,68020.0,0.19472065]
[1771662390092,0.014701,68039.0,68035.0,0.014702]
[1771662390292,1.514701,68040.0,68035.0,0.014702]
[1771662390789,1.514701,68040.0,68033.0,0.014703]
[1771662391192,1.514701,68040.0,68035.0,0.014702]
[1771662391996,1.514701,68040.0,68033.0,0.014703]
[1771662392185,0.014701,68039.0,68035.0,0.014702]